Cogmind - Beta 13 @@@ ROGUE MODE // 2024.04.01 @ 13:39:13 Player: Bobby43rocks Result: Destroyed by S-10 Pest with Light Assault Rifle Performance ------------- Evolutions (1) 500 Regions Visited (2) 400 Robots Destroyed (42) 210 Value Destroyed (875) 875 Prototype IDs (0) 0 Alien Tech Used (0) 0 Bonus (0) 0 TOTAL SCORE: 1985 Bonus ------- None Cogmind --------- Core Integrity 0/400 Matter 225/300 Energy 142/160 System Corruption 1% Temperature Cool (0) Movement Walking (190) Ox1 Location -9/Materials Parts ------- > --- POWER (1) -------- Light Nuclear Core > --- PROPULSION (2) --- Aluminum Leg Aluminum Leg > --- UTILITY (4) ------ Heat Sink Large Storage Unit Salvage Targeting Computer Salvage Targeting Computer > --- WEAPON (2) ------- EM Pulse Gun Small Laser > --- INVENTORY (15) --- Ion Engine Ion Engine Light Treads Light Treads Light Treads Compact Wheel Heat Sink Cooling System Signal Interpreter Signal Interpreter Peak State ------------ > --- POWER ------------ Light Nuclear Core > --- PROPULSION ------- Aluminum Leg Aluminum Leg > --- UTILITY ---------- Heat Sink Large Storage Unit Salvage Targeting Computer Salvage Targeting Computer > --- WEAPON ----------- EM Pulse Gun Light Assault Rifle > --- INVENTORY -------- Ion Engine Ion Engine Light Treads Compact Wheel Heat Sink Cooling System Signal Interpreter Signal Interpreter Small Laser [Rating: 14] Favorites ----------- Power Improved Ion Engine Engine Improved Ion Engine Power Core Light Nuclear Core Propulsion Aluminum Leg Treads Light Treads Leg Aluminum Leg Utility Salvage Targeting Computer Device Heat Sink Storage Large Storage Unit Processor Salvage Targeting Computer Protection Weapon Shielding Weapon Light Assault Rifle Energy Gun EM Pulse Gun Ballistic Gun Light Assault Rifle Launcher Grenade Launcher Build | -11 -10 -9 ------- Run | Yrd Mat Mat Slots Evolved 2 | . . 2 Power . | . . . Propulsion . | . . . Utility 2 | . . 2 Weapon . | . . . Parts Attached 34 | 7 10 17 Power 8 | 1 3 4 Engine 7 | 1 3 3 Core 1 | . . 1 Reactor . | . . . Propulsion 8 | 2 2 4 Treads 2 | 2 . . Leg 6 | . 2 4 Wheel . | . . . Hover . | . . . Flight . | . . . Utility 8 | 1 3 4 Device 2 | . 1 1 Storage 2 | 1 1 . Processor 2 | . 1 1 Hackware . | . . . Protection 2 | . . 2 Artifact . | . . . Weapon 10 | 3 2 5 Energy Gun 4 | 2 . 2 Energy Cannon . | . . . Ballistic Gun 4 | 1 1 2 Ballistic Cannon . | . . . Launcher 2 | . 1 1 Special Weapon . | . . . Impact Weapon . | . . . Slashing Weapon . | . . . Piercing Weapon . | . . . Special Melee Weapon . | . . . Unidentified Prototypes . | . . . Parts Lost 16 | . 2 14 Power 4 | . 1 3 Propulsion 5 | . 1 4 Utility 2 | . . 2 Weapon 5 | . . 5 Highest Loss Streak 10 | . 1 10 To Critical Strikes . | . . . Average Slot Usage (%) 94 | . 98 91 Engine 10 | . 14 8 Core 1 | . . 1 Treads 8 | . 19 . Leg 13 | . 8 17 Device 3 | . 1 3 Storage 12 | . 14 11 Processor 13 | . 10 14 Protection 7 | . . 12 Energy Gun 3 | . 1 4 Ballistic Gun 12 | . 14 10 Launcher 8 | . 11 6 Naked Turns . | . . . Heaviest Build 33 | 12 31 33 Greatest Support 40 | 40 40 20 Greatest Overweight (x) 9 | . 1 9 Average Overweight (x) . | . . 1 Largest Inventory Capacity 15 | 8 15 15 Average Capacity 12 | 7 9 15 Most Carried 11 | 4 9 11 Average Carried 6 | 2 7 7 Final Capacity 15 | 8 15 15 Final Carried 10 | 4 8 10 Class Distribution -------------------- 92% | Mutant 7% | Scavenger-Mutant Dominant Class ---------------- Mutant | -10/Materials Mutant | -9/Materials Resources | -11 -10 -9 ----------- Run | Yrd Mat Mat Matter Collected 710 | 216 116 378 Remotely . | . . . Salvage Created 870 | . 280 590 Parts 86 | . 28 58 Haulers Intercepted . | . . . Recyclers Shooed 3 | . 1 2 Parts Field Recycled . | . . . Retrieved Matter . | . . . Parts Self-Destructed . | . . . Prevented . | . . . Kills | -11 -10 -9 ------- Run | Yrd Mat Mat Combat Hostiles Destroyed 27 | . 10 17 Guns 13 | . 5 8 AOE 14 | . 5 9 Classes Destroyed 7 | . 6 1 Worker 3 | . 2 1 Builder 8 | . 3 5 Mechanic 1 | . 1 . Watcher 3 | . 2 1 Swarmer 11 | . 6 5 Grunt 12 | . 4 8 Sentry 4 | . . 4 Best Kill Streak 7 | . 4 7 Combat Bots Only 4 | . 3 4 Max Kills in Single Turn 4 | . 2 4 Gunslinging 1 | . . 1 Exploded 2 | . 2 2 Melee . | . . . Uniques/NPCs Destroyed . | . . . Combat | -11 -10 -9 -------- Run | Yrd Mat Mat Hostile Shots Fired 206 | . 56 150 Missed 53 | . 14 39 Damage Taken 2041 | . 486 1555 Core 460 | . 58 402 Absorbed by Shields . | . . . Redirected to Shielding 101 | . . 101 Core Remaining (%) 88 | 100 76 . Volleys Fired 76 | . 32 44 Largest 2 | . 2 2 Hottest 80 | . 60 80 Shots Fired 136 | . 63 73 Gun 107 | . 49 58 Cannon . | . . . Launcher 29 | . 14 15 Special . | . . . Kinetic 68 | . 32 36 Thermal 1 | . . 1 Explosive 29 | . 14 15 Electromagnetic 38 | . 17 21 Robot Hit Streak 10 | . 4 10 Robot Miss Streak 7 | . 7 5 Penetration Max . | . . . Secondary Targets 2 | . 1 1 Max Gunslinging Chain 1 | . 1 1 Shots Hit Robots 75 | . 30 45 Core Hits 70 | . 26 44 Critical Kills . | . . . Critical Parts Destroyed . | . . . Critical Strikes 1 | . 1 . Corrupt 1 | . 1 . Melee Attacks . | . . . Impact . | . . . Slashing . | . . . Piercing . | . . . Sneak Attacks . | . . . Combat Hostiles . | . . . Follow-up Attacks . | . . . Damage Inflicted 2381 | . 926 1455 Guns 639 | . 232 407 Cannons . | . . . Explosions 1702 | . 681 1021 Melee . | . . . Ramming 40 | . 13 27 Kinetic 342 | . 120 222 Thermal 35 | . 24 11 Explosive 1659 | . 657 1002 Electromagnetic 305 | . 112 193 Impact . | . . . Slashing . | . . . Piercing . | . . . Highest Corruption 1 | . . 1 Average Corruption 1 | . . 1 Corruption Purged . | . . . Corruption Blocked . | . . . Overload Shots . | . . . Overflow Damage 118 | . 34 84 Projectiles . | . . . Explosions 118 | . 34 84 Melee . | . . . Knockbacks 1 | . . 1 Impact 1 | . . 1 Kinetic . | . . . Secondary . | . . . Self-Inflicted Damage 386 | . 110 276 Shots 14 | . 4 10 Rammed 11 | . 6 5 Targets Rammed 24 | . 8 16 Kicked 12 | . 1 11 Crushed 1 | . 1 . Highest Temperature 60 | . 60 33 Average Temperature 18 | . 23 8 Received Heat Transfer 534 | . 78 456 Siege Activations . | . . . Robots Corrupted . | . . . Combat Hostiles . | . . . Parts Fried . | . . . Impact Corruptions . | . . . Robots Melted . | . . . Combat Hostiles . | . . . Parts Melted 1 | . . 1 Heat Transferred 25 | . . 25 Parts Sabotaged . | . . . Parts Stolen . | . . . Parts Stripped . | . . . Power Chain Reactions 3 | . 1 2 Alert | -11 -10 -9 ------- Run | Yrd Mat Mat Peak Influence 336 | . 271 336 Initial 50 | . . 50 Average 120 | . 121 134 Maximum Alert Level 1 | . 1 1 Low Security (%) 79 | 100 79 76 Level 1 20 | . 20 23 Level 2 . | . . . Level 3 . | . . . Level 4 . | . . . Level 5 . | . . . High Security . | . . . Max Security . | . . . Squads Dispatched 3 | . 1 2 Investigation 1 | . 1 . Extermination . | . . . Reinforcement 2 | . . 2 Assault . | . . . Garrison . | . . . Intercept . | . . . Searches Triggered . | . . . Construction Impeded . | . . . Haulers Reinforced . | . . . Active Scanning Responses . | . . . Cargo Convoy Interrupts . | . . . Stealth | -11 -10 -9 --------- Run | Yrd Mat Mat Distress Signals 7 | . 1 6 Communications Jammed . | . . . Distress Signals . | . . . Times Spotted 48 | . 13 35 Peak Tracking Total 9 | . 5 9 Tactical Retreats 1 | . . 1 Traps | -11 -10 -9 ------- Run | Yrd Mat Mat Traps Triggered 1 | . 1 . Indirectly . | . . . Trap Hack Attempts . | . . . Triggered . | . . . Disarmed . | . . . Reprogrammed . | . . . Reused . | . . . Traps Extracted . | . . . Installed . | . . . Triggered . | . . . Machines | -11 -10 -9 ---------- Run | Yrd Mat Mat Machines Disabled 6 | . 1 5 Max in Single Turn 3 | . 1 3 Machines Repaired . | . . . Machines Dismantled . | . . . Machines Sabotaged . | . . . Overloaded Fab Kills . | . . . Hacking | -11 -10 -9 --------- Run | Yrd Mat Mat Machines Accessed 2 | . 2 . Terminals 1 | . 1 . Fabricators . | . . . Repair Stations . | . . . Recycling Units 1 | . 1 . Scanalyzers . | . . . Garrison Access . | . . . Total Hacks 3 | . 3 . Successful 2 | . 2 . Failed 1 | . 1 . Catastrophic . | . . . Database Lockouts . | . . . Manual . | . . . Terminals 2 | . 2 . Fabricators . | . . . Repair Stations . | . . . Recycling Units 1 | . 1 . Scanalyzers . | . . . Garrison Access . | . . . Terminal Hacks 1 | . 1 . Hauler Manifests 1 | . 1 . Fabricator Hacks . | . . . Repair Station Hacks . | . . . Recycling Unit Hacks 1 | . 1 . Recycle Component 1 | . 1 . Scanalyzer . | . . . Garrison Access Hacks . | . . . Unauthorized Hacks . | . . . Terminals . | . . . Fabricators . | . . . Repair Stations . | . . . Recycling Units . | . . . Scanalyzers . | . . . Garrison Access . | . . . Data Cores Recovered . | . . . Used . | . . . Hacking Detections 2 | . 2 . Full Trace Events . | . . . Feedback Events . | . . . Feedback Blocked . | . . . Robot Schematics Acquired . | . . . Robots Built . | . . . Authchips . | . . . Time . | . . . Total Robot Build Rating . | . . . Part Schematics Acquired . | . . . Parts Built . | . . . Authchips . | . . . Time . | . . . Total Part Build Rating . | . . . Parts Repaired . | . . . Time . | . . . Parts Recycled 1 | . 1 . Recycled Matter . | . . . Retrieved Matter . | . . . Retrieved Components . | . . . Parts Scanalyzed . | . . . Part Schematics Acquired . | . . . Parts Damaged . | . . . Bothacking | -11 -10 -9 ------------ Run | Yrd Mat Mat Used RIF Installer . | . . . Robots Hacked . | . . . Non-combat . | . . . Combat . | . . . Robot Hacks Applied . | . . . Relay Couplers Released . | . . . Fabnet Peak Effective % . | . . . Robots Rewired . | . . . Allies Hacked . | . . . Hacks Repelled . | . . . Allies | -11 -10 -9 -------- Run | Yrd Mat Mat Total Allies . | . . . Largest Group . | . . . Highest-Rated Group . | . . . Highest-Rated Ally . | . . . Total Orders . | . . . Ally Attacks . | . . . Total Damage . | . . . Kills . | . . . Allies Corrupted . | . . . Allies Melted . | . . . Intel | -11 -10 -9 ------- Run | Yrd Mat Mat Robot Analysis Total . | . . . Derelict Logs Recovered . | . . . Drone Launches . | . . . Drone Recoveries . | . . . Exploration | -11 -10 -9 ------------- Run | Yrd Mat Mat Turns Passed 2424 | 165 994 1265 Spaces Moved 1162 | 99 548 515 Core 31 | 6 . 25 Treads 451 | 93 358 . Legs 680 | . 190 490 Wheels . | . . . Hover . | . . . Flight . | . . . Fastest Speed 50 | 50 120 190 Average Speed 180 | 153 157 208 Slowest Speed 500 | 160 190 500 Overloaded Moves . | . . . Propulsion Burnouts . | . . . Robots Hopped . | . . . Cave-ins Triggered . | . . . Exploration Rate (%) 34 | 6 58 40 Regions Visited 2 Branch Regions . Pre-discovered Areas . | . . . Known Exits Taken . | . . . Unknown Exits Taken 2 | 1 1 . Scrap Searched . | . . . Spaces Dug . | . . . Terrain Destroyed 170 | . 95 75 Melee . | . . . Projectile . | . . . AOE 170 | . 95 75 Terrain Rammed . | . . . Walls Destroyed . | . . . Machines Disabled . | . . . Actions | -11 -10 -9 --------- Run | Yrd Mat Mat Total 1333 | 109 619 605 Wait 1 | . . 1 Move 1160 | 98 547 515 Hop . | . . . Pick Up 29 | 4 13 12 Fast Attach 13 | 6 1 6 Attach 12 | . 2 10 Detach . | . . . Swap 9 | 1 7 1 Drop 9 | . 9 . Fire 76 | . 32 44 Melee . | . . . Ram 5 | . . 5 Kick 12 | . 1 11 Crush 7 | . 7 . Escape Stasis . | . . . Rewire . | . . . Trap . | . . . Miscellaneous . | . . . Route ------- -11/Scrapyard -10/Materials (discovered 2 exits: [*Mat x2]) -9/Materials (discovered 1 exit: [*Min]) History --------- Turn | Location | Event 17 | -11/Scrapyard | Discovered new exit (range 15) 166 | -11/Scrapyard | Entered Materials 314 | -10/Materials | Build established: Mutant 562 | -10/Materials | Discovered new exit (range 10) 917 | -10/Materials | Discovered new exit (range 10) 1160 | -10/Materials | Entered another Materials area 1160 | -9/Materials | Evolved 2 slots: Utility x2 1791 | -9/Materials | Discovered new exit (range 16) 1910 | -9/Materials | Core integrity fell below 50% 1921 | -9/Materials | Core integrity fell below 20% 1952 | -9/Materials | Lost 10 parts (2p2n2u4w) 2425 | -9/Materials | Destroyed by S-10 Pest with Light Assault Rifle Last Messages --------------- K-01 Serf collects debris. K-01 Serf cleans the Machine. K-01 Serf collects debris. Acquired Aluminum Leg. K-01 Serf collects debris. Acquired Signal Interpreter. K-01 Serf cleans the Machine. K-01 Serf destroyed. K-01 Serf collects debris. Acquired Cooling System. Critical hit (Burn: +37). Y-45 Defender destroyed. Acquired Lgt. Treads. Acquired 60 matter. Lgt. Assault Rifle destroyed. Acquired Corrupted Lgt. Treads. G-34 Mercenary destroyed. Switching to secondary target: S-10 Pest. Flight Unit melted. S-10 Pest destroyed. Map ----- +----------------------------------------------------+ | ???????????????????????????########## | | ???????????????????????????#""|"|""## T ! | | ??????????????????# ??????# "|"|" ## ##### | | ?????????????????" ##### ## #= | | ?????????????????" ^^ ^ =%=% + | | ????????????????? ^^ < ! # | | ????????????????? ! # | | ????????????????? # ## "" # | | ?????????????????? ########## "" # | | ?????????????????? ??# # """ # | | ??????????????????? ??#""" # ##### | | ????????????????????" ??#""" # ##??? | | ????????????????????" #?#""" # """ #??? | | ????????????????????" ### # """ # | | ????????????????????? ##""" # """ + | | ?????????????????????? a ##""" # # | | ??????????????????????? ##""" # ! #? | | ???????????????????????? ## # """ #??? | | ????????????????????????# ######+## """ #??? | | ????????????????????????#=[s#??# """ #??? | | ????????????????????????#%s%#??# #??? | | ???????????????????????##* !##?# #??? | | ???????????????????????# ### """ #??? | | ???????????????????????# ! """ #### | | ???????????????????????# ! """ | | ???????????????????????# @*[ | | ???????????????????????# ##### | | ???????????????????????#######???##+############## | | ?????????????????????????????????????????????????? | | ?????????????????????????????????????????????????? | | ?????????????????????????????????????????????????? | | ?????????????????????????????????????????????????? | | ?????????????????????????????????????????????????? | | ?????????????????????????????????????????????????? | | ?????????????????????????????????????????????????? | | ?????????????????????????????????????????????????? | | ????????????????????????????????????????????###### | | ????????????????????????????????????????????# "" | | ????????????????????????????????????????????# "" | | ????????????????????????????????????????????# | | ????????????????????????????????????????????# | | ????????????????????????????????????????????# """ | | ????????????????????????????????????????????# """ | | ????????????????????????????????????????????# """ | | ????????????????????????????????????????????# | | ??????????????????????????????????????############ | | ??????????????????????????????????????# ##### | | ??????????????????????????????????????# + | | ??????????????????????????????????????# ##### | | ??????????????????????????????????????# #???? | +----------------------------------------------------+ Best States ------------- Heat Dissipation 38 Coolant Potential 50 Energy Generation 14 Energy Capacity 265 Matter Stores 300 Matter Capacity 300 Sight Range 16 Terrain Scan Density 10 Weapon Shielding 33 Evasion (%) 55 Recoil Reduction 2 Salvage Targeting 2 Item Schematics ----------------- None Robot Schematics ------------------ None Fabricated ------------ Nothing Alien Tech Used ----------------- None Achievements -------------- Let's See Who's Tougher Challenges ------------ None Game ------ Seed SiegeInertialWings Manual? 0 Play Time 00:15:20 Cumulative 3.1 hours Start 2024.04.01 @ 13:25:48 End 2024.04.01 @ 13:39:13 Sessions 1 Manual Loads 0 Difficulty Rogue Special Mode None Game No. 10 Rogue 10 Adventurer 0 Explorer 0 Win Type - Total 0 Types 0/0/0/0/0/0/0/0/0 Lore% 0 Gallery% 9 Achievement% 8 Wizard Run 0 Options --------- Layout 1 ASCII 0 Keyboard 1 Movement Arrows Keybinds 0 Fullscreen 2 Font 24/Tallcaps Map View 50x35 Zoom Use 0% Tactical HUD 0 Map Filters NONE Filters NONE Steam 1 RUN: 8d789313-c8e2-4c5c-b686-66d7703c30af